bitfinex-derivatives/quotes_BTCF0:USTF0_20250822
["timestamp","ask_amount","ask_price","bid_price","bid_amount"]
[1755859182534,0.31298263,112700.0,112690.0,0.11757]
[1755859183441,0.31398263,112700.0,112690.0,0.39838263]
[1755859183628,0.31398263,112700.0,112690.0,0.08434]
[1755859183832,0.31398263,112700.0,112690.0,0.11757]
[1755859184327,0.31498263,112700.0,112690.0,0.11957]
[1755859184536,0.31498263,112700.0,112690.0,0.1435428]
[1755859184743,0.32455005,112700.0,112690.0,0.1435428]
[1755859185228,0.96616268,112700.0,112690.0,0.11957]
[1755859185434,0.96616268,112700.0,112690.0,0.07211]
[1755859185838,0.96616268,112700.0,112690.0,0.11957]
[1755859186237,0.38874742,112700.0,112690.0,0.65038263]
[1755859186438,0.38874742,112700.0,112690.0,0.3935428]
[1755859186439,1.34418742,112700.0,112690.0,0.3935428]
[1755859186640,1.62600005,112700.0,112690.0,0.67435543]
[1755859186828,1.62500005,112700.0,112690.0,0.67235543]
[1755859187032,0.52694742,112700.0,112690.0,0.67335543]
[1755859187244,1.62500005,112700.0,112690.0,0.67335543]
[1755859187747,1.90581268,112700.0,112690.0,0.64938263]
[1755859187939,1.40581268,112700.0,112690.0,0.64938263]
[1755859188136,1.12500005,112700.0,112690.0,0.64938263]
[1755859188343,0.84418742,112700.0,112690.0,0.14254937]
[1755859188651,1.40581268,112700.0,112690.0,0.14254937]
[1755859188939,1.12500005,112700.0,112690.0,0.784162]
[1755859189738,0.84418742,112700.0,112690.0,0.784162]
[1755859190144,1.12500005,112700.0,112690.0,0.50334937]
[1755859190346,1.12500005,112700.0,112690.0,0.47937]
[1755859190546,1.12500005,112700.0,112690.0,0.76018263]
[1755859191450,1.14079005,112700.0,112690.0,0.47937]
[1755859191951,1.14079005,112700.0,112690.0,0.76018263]
[1755859192346,0.85997742,112700.0,112690.0,0.76018263]
[1755859192547,1.14079005,112700.0,112690.0,0.76018263]
[1755859192751,0.85997742,112700.0,112690.0,0.76018263]
[1755859193044,1.14079005,112700.0,112690.0,0.47937]
[1755859193243,1.14079005,112700.0,112690.0,0.76018263]
[1755859193551,1.12500005,112700.0,112690.0,0.76018263]
[1755859194649,1.21374595,112700.0,112690.0,0.76018263]
[1755859196548,1.22953595,112700.0,112690.0,0.76018263]
[1755859196742,0.94872332,112700.0,112690.0,0.76018263]
[1755859196954,1.22953595,112700.0,112690.0,0.76018263]
[1755859198751,1.22953595,112700.0,112690.0,0.47937]
[1755859198954,1.22953595,112700.0,112690.0,0.76018263]
[1755859203060,0.94872332,112700.0,112690.0,0.47937]
[1755859203356,1.22953595,112700.0,112690.0,0.76018263]
[1755859204349,0.94872332,112700.0,112690.0,0.76018263]
[1755859204556,0.13148332,112700.0,112690.0,0.76018263]
[1755859204747,1.22846595,112700.0,112690.0,0.76018263]
[1755859205057,0.11569332,112700.0,112690.0,0.76018263]
[1755859205257,0.94765332,112700.0,112690.0,0.76018263]
[1755859205759,0.94765332,112700.0,112690.0,0.47937]
[1755859205964,0.11569332,112700.0,112690.0,0.76018263]
[1755859206256,1.22866595,112700.0,112690.0,0.76018263]
[1755859207066,0.94785332,112700.0,112690.0,0.76018263]
[1755859207250,1.22866595,112700.0,112690.0,0.76018263]
[1755859207451,1.22866595,112700.0,112690.0,0.47937]
[1755859207851,1.22866595,112700.0,112690.0,0.76018263]
[1755859208456,0.94785332,112700.0,112690.0,0.76018263]
[1755859208958,1.22866595,112700.0,112690.0,0.76018263]
[1755859209361,1.22866595,112700.0,112690.0,0.784162]
[1755859209859,1.22866595,112700.0,112690.0,0.76018263]
[1755859210064,1.24445595,112700.0,112690.0,0.76018263]
[1755859210364,1.24445595,112700.0,112690.0,0.47937]
[1755859210559,1.24445595,112700.0,112690.0,0.76018263]
[1755859210862,1.24445595,112700.0,112690.0,0.784162]
[1755859211257,1.24445595,112700.0,112690.0,0.76018263]
[1755859212060,1.24445595,112700.0,112690.0,0.72695263]
[1755859212261,1.24445595,112700.0,112690.0,0.75929263]
[1755859213456,1.52526858,112700.0,112690.0,0.08534]
[1755859213662,1.52526858,112700.0,112690.0,0.33642263]
[1755859214167,1.52526858,112700.0,112690.0,0.38341263]
[1755859214466,1.24445595,112700.0,112690.0,0.39854263]
[1755859214761,0.96364332,112700.0,112690.0,0.39854263]
[1755859214967,1.52526858,112700.0,112690.0,0.39854263]
[1755859215160,0.96364332,112700.0,112690.0,0.11773]
[1755859215355,1.52526858,112700.0,112690.0,0.39854263]
[1755859215661,0.96364332,112700.0,112690.0,0.39854263]
[1755859215866,1.52526858,112700.0,112690.0,0.39854263]
[1755859217065,1.52526858,112700.0,112690.0,0.33642263]
[1755859217478,1.52526858,112700.0,112690.0,0.40050263]
[1755859217758,1.52478858,112700.0,112690.0,0.40050263]
[1755859217963,1.24397595,112700.0,112690.0,0.40050263]
[1755859219564,1.24397595,112700.0,112690.0,0.11969]
[1755859219865,1.24397595,112700.0,112690.0,0.40050263]
[1755859223565,0.96316332,112700.0,112690.0,0.40050263]
[1755859223767,1.24397595,112700.0,112690.0,0.11969]
[1755859223957,1.24397595,112700.0,112690.0,0.40050263]
[1755859225369,1.24397595,112700.0,112690.0,0.11969]
[1755859225670,1.24397595,112700.0,112690.0,0.40050263]
[1755859226368,1.24397595,112700.0,112690.0,0.11969]
[1755859226568,1.24397595,112700.0,112690.0,0.40050263]
[1755859226769,1.24241595,112700.0,112690.0,0.40050263]
[1755859226972,1.24209595,112700.0,112690.0,0.40050263]
[1755859228070,1.24209595,112700.0,112690.0,0.11969]
[1755859228370,1.24209595,112700.0,112690.0,0.40050263]
[1755859228763,1.24209595,112700.0,112690.0,0.4182842]
[1755859229366,0.96076332,112700.0,112690.0,0.4182842]
[1755859229559,1.24157595,112700.0,112690.0,0.4182842]
[1755859229869,1.24157595,112700.0,112690.0,0.13747157]
[1755859230063,1.24157595,112700.0,112690.0,0.4182842]
[1755859230464,1.24157595,112700.0,112690.0,0.13747157]
[1755859230669,1.24157595,112700.0,112690.0,0.4182842]
[1755859231771,0.96076332,112700.0,112690.0,0.4182842]
[1755859231969,1.24157595,112700.0,112690.0,0.4182842]
[1755859232470,1.24221595,112700.0,112690.0,0.4182842]
[1755859232777,0.96140332,112700.0,112690.0,0.4182842]
[1755859232964,1.24221595,112700.0,112690.0,0.4182842]
[1755859233273,0.96140332,112700.0,112690.0,0.4182842]
[1755859233471,1.24221595,112700.0,112690.0,0.4182842]
[1755859234170,1.77302858,112700.0,112690.0,0.3542042]
[1755859235572,1.77302858,112700.0,112690.0,0.3877242]
[1755859237273,1.77302858,112700.0,112690.0,0.3542042]
[1755859238174,1.77302858,112700.0,112690.0,0.10691157]
[1755859238375,1.77302858,112700.0,112690.0,0.4024042]
[1755859240171,1.77302858,112700.0,112690.0,0.12159157]
[1755859240475,1.77302858,112700.0,112690.0,0.4024042]
[1755859240676,2.13382858,112700.0,112690.0,0.05161157]
[1755859241082,2.13382858,112700.0,112690.0,0.07364157]
[1755859241369,2.13382858,112700.0,112690.0,0.3544542]
[1755859242076,2.13382858,112700.0,112690.0,0.07364157]
[1755859244169,1.85301595,112700.0,112690.0,0.10716157]
[1755859244569,1.85301595,112700.0,112690.0,0.07364157]
[1755859245177,2.13382858,112700.0,112690.0,0.01878157]
[1755859245781,2.13382858,112700.0,112690.0,0.04205157]
[1755859247373,1.57220332,112700.0,112690.0,0.04205157]
[1755859247572,2.13382858,112700.0,112690.0,0.04205157]
[1755859248270,2.13198858,112700.0,112690.0,0.04205157]
[1755859248481,2.13198858,112700.0,112690.0,0.06408157]
[1755859248870,1.30390858,112700.0,112690.0,0.0463]
[1755859249184,2.13202858,112700.0,112690.0,0.0463]
[1755859249572,2.13202858,112700.0,112690.0,0.07993]
[1755859249773,2.13202858,112700.0,112690.0,0.0463]
[1755859250273,2.13202858,112700.0,112690.0,0.05587]
[1755859251175,2.10608116,112700.0,112690.0,0.05587]
[1755859251380,1.94288166,112700.0,112690.0,0.05587]
[1755859251572,1.94288166,112700.0,112690.0,0.0819336]
[1755859252877,1.94288166,112700.0,112690.0,0.1035736]
[1755859253182,1.3812564,112700.0,112690.0,0.0819336]
[1755859253381,1.95194108,112700.0,112690.0,0.0819336]
[1755859254274,1.12382108,112700.0,112690.0,0.0819336]
[1755859254471,1.95370108,112700.0,112690.0,0.1035736]
[1755859254681,1.95378108,112700.0,112690.0,0.1131436]
[1755859254876,1.12382108,112700.0,112690.0,0.1131436]
[1755859255073,1.95426108,112700.0,112690.0,0.45765623]
[1755859255278,1.95418108,112700.0,112690.0,0.1768436]
[1755859256184,1.95418108,112700.0,112690.0,0.45765623]
[1755859256378,1.39255582,112700.0,112690.0,0.1295036]
[1755859256683,1.95418108,112700.0,112690.0,0.1295036]
[1755859258181,1.95418108,112700.0,112690.0,0.1131436]
[1755859260376,1.39743582,112700.0,112690.0,0.1631336]
[1755859260581,1.95906108,112700.0,112690.0,0.45765623]
[1755859260885,1.39743582,112700.0,112690.0,0.45765623]
[1755859261184,1.95906108,112700.0,112690.0,0.1768436]
[1755859261582,1.95898108,112700.0,112690.0,0.1768436]
[1755859261886,1.95898108,112700.0,112690.0,0.1215736]
[1755859262087,1.95898108,112700.0,112690.0,0.1432136]
[1755859262386,1.95898108,112700.0,112690.0,0.1768436]
[1755859262879,1.40047582,112700.0,112690.0,0.0819336]
[1755859263080,1.12382108,112700.0,112690.0,0.1467736]
[1755859263387,1.12382108,112700.0,112690.0,0.1631336]
[1755859263686,1.12382108,112700.0,112690.0,0.1768436]
[1755859263887,1.96210108,112700.0,112690.0,0.1768436]
[1755859264180,1.40047582,112700.0,112690.0,0.1768436]
[1755859264583,1.96210108,112700.0,112690.0,0.1768436]
[1755859265787,1.40047582,112700.0,112690.0,0.1768436]
[1755859265981,1.96210108,112700.0,112690.0,0.1768436]
[1755859267588,1.96210108,112700.0,112690.0,0.1432136]
[1755859268682,1.96210108,112700.0,112690.0,0.1295036]
[1755859269089,1.40047582,112700.0,112690.0,0.1295036]
[1755859269290,1.96210108,112700.0,112690.0,0.1631336]
[1755859269589,1.96110108,112700.0,112690.0,0.1631336]
[1755859270586,1.96110108,112700.0,112690.0,0.1295036]
[1755859271285,1.39947582,112700.0,112690.0,0.1295036]
[1755859271487,1.96110108,112700.0,112690.0,0.1295036]
[1755859271887,1.96110108,112700.0,112690.0,0.1768436]
[1755859273492,1.39947582,112700.0,112690.0,0.1768436]
[1755859273692,1.96110108,112700.0,112690.0,0.1768436]
[1755859273892,1.96110108,112700.0,112690.0,0.45765623]
[1755859274285,1.96110108,112700.0,112690.0,0.1768436]
[1755859274486,1.96110108,112700.0,112690.0,0.45765623]
[1755859274989,1.96110108,112700.0,112690.0,0.1432136]
[1755859275592,1.9807746,112700.0,112690.0,0.1432136]
[1755859276296,1.9807746,112700.0,112690.0,0.1295036]
[1755859276592,1.9807746,112700.0,112690.0,0.1131436]
[1755859276794,1.9807746,112700.0,112690.0,0.0819336]
[1755859277794,1.41914934,112700.0,112690.0,0.0819336]
[1755859278096,1.9807746,112700.0,112690.0,0.0819336]
[1755859278998,2.1744146,112700.0,112690.0,0.0819336]
[1755859282899,1.61278934,112700.0,112690.0,0.0819336]
[1755859283097,2.1744146,112700.0,112690.0,0.0819336]
[1755859283287,1.61278934,112700.0,112690.0,0.1043636]
[1755859283491,2.1744146,112700.0,112690.0,0.1141036]
[1755859283797,2.1744146,112700.0,112690.0,0.1790236]
[1755859283995,2.1744146,112700.0,112690.0,0.14834296]
[1755859284197,2.1744146,112700.0,112690.0,0.10008296]
[1755859284800,1.61278934,112700.0,112690.0,0.10008296]
[1755859284995,2.1744146,112700.0,112690.0,0.16658296]
[1755859285491,2.1744146,112700.0,112690.0,0.13225296]
[1755859287001,2.1744146,112700.0,112690.0,0.18267296]
[1755859287402,2.1744146,112700.0,112690.0,0.19717296]
[1755859289005,1.89360197,112700.0,112690.0,0.19717296]
[1755859289212,2.1744146,112700.0,112690.0,0.19717296]
[1755859289404,2.1744146,112700.0,112690.0,0.14834296]
[1755859289606,1.9820782,112700.0,112690.0,0.09067936]
[1755859293305,1.9820782,112700.0,112690.0,0.13950936]
[1755859296818,1.9820782,112700.0,112690.0,0.09067936]
[1755859297116,1.9820782,112700.0,112690.0,0.04241936]
[1755859301610,1.9820782,112700.0,112690.0,0.02427]
[1755859301812,0.01792,112690.0,112680.0,0.02247]
[1755859302016,1.2746789,112690.0,112680.0,4e-05]
[1755859303113,1.4807589,112690.0,112680.0,0.00104]
[1755859303322,1.7317589,112690.0,112680.0,0.00104]
[1755859303510,1.8332211,112690.0,112680.0,0.00104]
[1755859303912,2.3322211,112690.0,112680.0,0.00104]
[1755859304218,2.3332211,112690.0,112680.0,0.00104]
[1755859304412,2.40309042,112690.0,112680.0,0.00104]
[1755859304813,3.23721042,112690.0,112680.0,0.00104]
[1755859305421,2.40309042,112690.0,112680.0,0.00104]
[1755859305609,3.23713042,112690.0,112680.0,4e-05]
[1755859305813,3.23913042,112690.0,112680.0,0.00104]
[1755859309025,2.40509042,112690.0,112680.0,0.00104]
[1755859309219,3.23853042,112690.0,112680.0,0.00104]
[1755859309723,2.40509042,112690.0,112680.0,0.00104]
[1755859309923,3.23813042,112690.0,112680.0,0.00104]
[1755859311419,3.23765042,112690.0,112680.0,0.00104]
[1755859313322,3.23769042,112690.0,112680.0,0.00104]
[1755859313622,3.23769042,112690.0,112680.0,0.02477]
[1755859314124,2.40509042,112690.0,112680.0,0.02477]
[1755859314426,3.23745042,112690.0,112680.0,0.02477]
[1755859314817,3.23713042,112690.0,112680.0,0.02477]
[1755859315019,1.50913152,112690.0,112680.0,0.11904]
[1755859315220,2.90271678,112690.0,112680.0,0.11904]
[1755859317630,1.50913152,112690.0,112680.0,0.11904]
[1755859317831,2.90283678,112690.0,112680.0,0.11904]
[1755859318328,2.65283678,112690.0,112680.0,0.11904]
[1755859318529,2.54448458,112690.0,112680.0,0.11904]
[1755859318924,2.55137458,112690.0,112680.0,0.11904]
[1755859321226,1.71929458,112690.0,112680.0,0.11904]
[1755859321422,2.55093458,112690.0,112680.0,0.11904]
[1755859322734,1.15766932,112690.0,112680.0,0.11904]
[1755859322933,1.43159195,112690.0,112680.0,0.36904]
[1755859323232,2.26247195,112690.0,112680.0,0.36904]
[1755859323633,1.76247195,112690.0,112680.0,0.36904]
[1755859324237,1.76936195,112690.0,112680.0,0.36904]
[1755859324532,1.48854932,112690.0,112680.0,0.36904]
[1755859324734,1.76936195,112690.0,112680.0,0.36904]
[1755859325127,1.56328195,112690.0,112680.0,0.36904]
[1755859325934,1.84409458,112690.0,112680.0,0.32147]
[1755859326927,1.84409458,112690.0,112680.0,0.36904]
[1755859327124,1.84409458,112690.0,112680.0,0.27477]
[1755859327639,1.84409458,112690.0,112680.0,0.29635]
[1755859327844,1.84409458,112690.0,112680.0,0.3058]
[1755859328028,1.84409458,112690.0,112680.0,0.28422]
[1755859328331,1.84409458,112690.0,112680.0,0.3058]
[1755859329129,1.84409458,112690.0,112680.0,0.64985263]
[1755859329130,1.27533932,112690.0,112680.0,0.64985263]
[1755859329337,1.55615195,112690.0,112680.0,0.64985263]
[1755859329934,1.47613932,112690.0,112680.0,0.36904]
[1755859330238,1.75695195,112690.0,112680.0,0.36904]
[1755859331237,1.76384195,112690.0,112680.0,0.36904]
[1755859332039,1.48302932,112690.0,112680.0,0.36904]
[1755859332342,1.75695195,112690.0,112680.0,0.36904]
[1755859333630,1.39543195,112690.0,112680.0,0.36904]
[1755859333831,1.19463195,112690.0,112680.0,0.36904]
[1755859335548,1.2583004,112690.0,112680.0,0.36904]
[1755859336132,1.6191004,112690.0,112680.0,0.36904]
[1755859336740,1.2577804,112690.0,112680.0,0.36904]
[1755859337141,1.2577804,112690.0,112680.0,0.64985263]
[1755859337351,1.6185804,112690.0,112680.0,0.64985263]
[1755859337937,1.2577804,112690.0,112680.0,0.64985263]
[1755859338936,0.97696777,112690.0,112680.0,0.64985263]
[1755859339144,1.2577804,112690.0,112680.0,0.64985263]
[1755859339736,0.97696777,112690.0,112680.0,0.64985263]
[1755859339939,1.2577804,112690.0,112680.0,0.64985263]
[1755859340142,1.19411195,112690.0,112680.0,0.36904]
[1755859340443,1.19411195,112690.0,112680.0,0.64985263]
[1755859340642,1.19411195,112690.0,112680.0,0.36904]
[1755859340948,1.19411195,112690.0,112680.0,0.64985263]
[1755859341140,0.91329932,112690.0,112680.0,0.64985263]
[1755859341444,1.19411195,112690.0,112680.0,0.64985263]
[1755859341646,1.19411195,112690.0,112680.0,0.36904]
[1755859341945,1.19411195,112690.0,112680.0,0.64985263]
[1755859343546,0.91329932,112690.0,112680.0,0.64985263]
[1755859343742,1.19411195,112690.0,112680.0,0.64985263]
[1755859347349,1.20100195,112690.0,112680.0,0.64985263]
[1755859348349,0.37160195,112690.0,112680.0,0.64985263]
[1755859348543,1.19924195,112690.0,112680.0,0.64985263]
[1755859349638,0.36471195,112690.0,112680.0,0.39985263]
[1755859350148,1.19239195,112690.0,112680.0,1.01065263]
[1755859351156,1.19227195,112690.0,112680.0,1.01065263]
[1755859354541,0.36471195,112690.0,112680.0,1.01065263]
[1755859354742,1.19167195,112690.0,112680.0,1.01065263]
[1755859356053,1.19167195,112690.0,112680.0,0.72984]
[1755859356353,1.19167195,112690.0,112680.0,1.01065263]
[1755859356852,1.19167195,112690.0,112680.0,0.72984]
[1755859357052,1.19167195,112690.0,112680.0,0.36904]
[1755859357256,1.19167195,112690.0,112680.0,0.64985263]
[1755859357649,1.55247195,112690.0,112680.0,0.64985263]
[1755859360649,1.55936195,112690.0,112680.0,0.64985263]
[1755859361559,1.55147195,112690.0,112680.0,0.64985263]
[1755859364661,1.55836195,112690.0,112680.0,0.64985263]
[1755859366564,1.27754932,112690.0,112680.0,0.64985263]
[1755859366957,1.55836195,112690.0,112680.0,0.64985263]
[1755859368658,1.54991195,112690.0,112680.0,0.64985263]
[1755859370071,1.6135804,112690.0,112680.0,0.64985263]
[1755859372070,1.6135804,112690.0,112680.0,0.36904]
[1755859372269,1.6204704,112690.0,112680.0,0.64985263]
[1755859373272,1.55680195,112690.0,112680.0,0.36904]
[1755859374069,1.55680195,112690.0,112680.0,0.64985263]
[1755859374574,1.55680195,112690.0,112680.0,0.36904]
[1755859377972,1.55680195,112690.0,112680.0,0.64985263]
[1755859378278,1.55680195,112690.0,112680.0,0.36904]
[1755859381277,1.27598932,112690.0,112680.0,0.36904]
[1755859381475,0.73240195,112690.0,112680.0,0.36904]
[1755859381679,0.72551195,112690.0,112680.0,0.64985263]
[1755859382073,1.54939195,112690.0,112680.0,0.64985263]
[1755859382879,1.26857932,112690.0,112680.0,0.64985263]
[1755859383173,0.07286932,112690.0,112680.0,0.93066526]
[1755859383373,0.89674932,112690.0,112680.0,0.93066526]
[1755859384271,0.07286932,112690.0,112680.0,1.29146526]
[1755859384878,0.08389932,112690.0,112680.0,1.29146526]
[1755859385080,0.36471195,112690.0,112680.0,1.29146526]
[1755859385680,0.08389932,112690.0,112680.0,1.29146526]
[1755859386080,0.36471195,112690.0,112680.0,1.01065263]
[1755859386472,0.36471195,112690.0,112680.0,1.29146526]
[1755859387280,0.08389932,112690.0,112680.0,1.29146526]
[1755859388183,0.36471195,112690.0,112680.0,1.29146526]
[1755859388479,0.08389932,112690.0,112680.0,1.29146526]
[1755859389082,0.36471195,112690.0,112680.0,1.01065263]
[1755859390679,0.07286932,112690.0,112680.0,1.01065263]
[1755859390874,0.35368195,112690.0,112680.0,1.01065263]
[1755859391083,0.35368195,112690.0,112680.0,1.29146526]
[1755859391382,0.36471195,112690.0,112680.0,1.29146526]
[1755859391583,0.36471195,112690.0,112680.0,0.72984]
[1755859391983,0.36471195,112690.0,112680.0,1.01065263]
[1755859393982,0.36471195,112690.0,112680.0,0.72984]
[1755859394181,0.36471195,112690.0,112680.0,1.01065263]
[1755859394786,0.08389932,112690.0,112680.0,1.01065263]
[1755859394988,0.36471195,112690.0,112680.0,1.01065263]
[1755859395681,0.08389932,112690.0,112680.0,1.01065263]
[1755859395885,0.36471195,112690.0,112680.0,1.01065263]
[1755859396280,0.36471195,112690.0,112680.0,1.29146526]
[1755859397495,0.08389932,112690.0,112680.0,1.29146526]
[1755859397685,0.36471195,112690.0,112680.0,1.29146526]
[1755859398078,0.07286932,112690.0,112680.0,1.29146526]
[1755859398386,0.35368195,112690.0,112680.0,1.29146526]
[1755859398578,0.35368195,112690.0,112680.0,0.72984]
[1755859398983,0.35368195,112690.0,112680.0,1.01065263]
[1755859399190,0.35368195,112690.0,112680.0,1.29146526]
[1755859400376,0.07286932,112690.0,112680.0,1.29146526]
[1755859400580,0.35368195,112690.0,112680.0,1.29146526]
[1755859402787,0.07286932,112690.0,112680.0,1.29146526]
[1755859402977,0.35368195,112690.0,112680.0,1.29146526]
[1755859405890,0.07286932,112690.0,112680.0,1.29146526]
[1755859406094,0.35368195,112690.0,112680.0,1.29146526]
[1755859406287,0.07286932,112690.0,112680.0,1.29146526]
[1755859406585,0.35368195,112690.0,112680.0,1.01065263]
[1755859406790,0.07286932,112690.0,112680.0,1.01065263]
[1755859406991,0.35368195,112690.0,112680.0,0.72984]
[1755859407186,0.35368195,112690.0,112680.0,1.29146526]
[1755859408694,0.07286932,112690.0,112680.0,1.29146526]
[1755859408894,0.35368195,112690.0,112680.0,1.29146526]
[1755859409390,0.15421814,112690.0,112680.0,1.29146526]
[1755859409586,0.28081263,112690.0,112680.0,0.68935263]
[1755859409980,1.47439205,112700.0,112680.0,0.68935263]
[1755859410187,1.19357942,112700.0,112690.0,0.05564]
[1755859410386,1.75520468,112700.0,112690.0,0.39838263]
[1755859410690,1.75520468,112700.0,112690.0,0.11757]
[1755859410886,0.93148468,112700.0,112690.0,0.11757]
[1755859411190,1.12558205,112700.0,112690.0,0.11757]
[1755859411392,1.12758205,112700.0,112690.0,0.11757]
[1755859412086,0.84676942,112700.0,112690.0,0.11757]
[1755859412290,1.12758205,112700.0,112690.0,0.11757]
[1755859412789,1.12758205,112700.0,112690.0,0.11857]
[1755859413781,1.12758205,112700.0,112690.0,0.39938263]
[1755859413782,0.01205942,112700.0,112690.0,0.39938263]
[1755859414096,0.01205942,112700.0,112690.0,0.76018263]
[1755859414484,0.29287205,112700.0,112690.0,0.76018263]
[1755859414783,0.01205942,112700.0,112690.0,0.76018263]
[1755859415283,0.83573942,112700.0,112690.0,0.76018263]
[1755859415684,0.01205942,112700.0,112690.0,0.76018263]
[1755859415885,0.83573942,112700.0,112690.0,0.76018263]
[1755859416089,0.01205942,112700.0,112690.0,0.76018263]
[1755859416279,0.29287205,112700.0,112690.0,0.76018263]
[1755859417191,0.01205942,112700.0,112690.0,0.76018263]
[1755859417392,0.29287205,112700.0,112690.0,0.76018263]
[1755859417592,0.01205942,112700.0,112690.0,0.76018263]
[1755859419993,0.01205942,112700.0,112690.0,0.47937]
[1755859420195,0.01205942,112700.0,112690.0,0.76018263]
[1755859421394,0.30390205,112700.0,112690.0,0.76018263]
[1755859421596,0.55390205,112700.0,112690.0,0.76018263]
[1755859421801,0.56079205,112700.0,112690.0,0.76018263]
[1755859422700,0.55390205,112700.0,112690.0,0.76018263]
[1755859425805,0.84160468,112700.0,112690.0,0.39938263]
[1755859427008,0.55390205,112700.0,112690.0,0.39938263]
[1755859428807,0.83471468,112700.0,112690.0,0.11857]
[1755859428999,0.84160468,112700.0,112690.0,0.11857]
[1755859429304,0.84160468,112700.0,112690.0,0.39938263]
[1755859431194,0.56079205,112700.0,112690.0,0.39938263]
[1755859431397,1.38427205,112700.0,112690.0,0.39938263]
[1755859432402,1.38427205,112700.0,112690.0,0.11857]
[1755859432604,1.38427205,112700.0,112690.0,0.39938263]
[1755859433008,1.38427205,112700.0,112690.0,0.11857]
[1755859433209,1.38427205,112700.0,112690.0,0.39938263]
[1755859433605,1.66508468,112700.0,112690.0,0.39938263]
[1755859435210,1.66508468,112700.0,112690.0,0.11857]
[1755859435408,1.66508468,112700.0,112690.0,0.39938263]
[1755859435912,1.38427205,112700.0,112690.0,0.39938263]
[1755859437406,1.38415205,112700.0,112690.0,0.39938263]
[1755859439817,0.56079205,112700.0,112690.0,0.39938263]
[1755859440007,1.38411205,112700.0,112690.0,0.39938263]
[1755859441118,1.38411205,112700.0,112690.0,0.11857]
[1755859441310,1.38411205,112700.0,112690.0,0.39938263]
[1755859442113,0.27997942,112700.0,112690.0,0.39938263]
[1755859442318,1.38407205,112700.0,112690.0,0.39938263]
[1755859442509,1.37718205,112700.0,112690.0,0.39938263]
[1755859442710,0.55390205,112700.0,112690.0,0.39938263]
[1755859442907,1.37718205,112700.0,112690.0,0.39938263]
[1755859443412,1.37718205,112700.0,112690.0,0.42335552]
[1755859444817,1.09636942,112700.0,112690.0,0.42335552]
[1755859445011,1.37718205,112700.0,112690.0,0.42335552]
[1755859446128,1.37718205,112700.0,112690.0,0.14254289]
[1755859446422,1.38407205,112700.0,112690.0,0.42335552]
[1755859446827,0.56079205,112700.0,112690.0,0.42335552]
[1755859447021,1.38403205,112700.0,112690.0,0.42335552]
[1755859447921,1.38403205,112700.0,112690.0,0.14254289]
[1755859448221,1.38403205,112700.0,112690.0,0.42335552]
[1755859451327,1.10321942,112700.0,112690.0,0.42335552]
[1755859451525,1.38391205,112700.0,112690.0,0.42335552]
[1755859453426,1.10309942,112700.0,112690.0,0.42335552]
[1755859453634,1.38391205,112700.0,112690.0,0.39938263]
[1755859460734,1.10309942,112700.0,112690.0,0.39938263]
[1755859460934,1.38391205,112700.0,112690.0,0.39938263]
[1755859462134,1.38391205,112700.0,112690.0,0.42335552]
[1755859462336,1.10309942,112700.0,112690.0,0.42335552]
[1755859462634,1.38391205,112700.0,112690.0,0.42335552]
[1755859468438,1.38391205,112700.0,112690.0,0.14254289]
[1755859468835,1.38391205,112700.0,112690.0,0.42335552]
[1755859469237,1.38391205,112700.0,112690.0,0.14254289]
[1755859469437,1.38391205,112700.0,112690.0,0.42335552]
[1755859469636,1.13391205,112700.0,112690.0,0.14254289]
[1755859469837,1.13391205,112700.0,112690.0,0.42335552]
[1755859470233,1.13391205,112700.0,112690.0,0.39938263]
[1755859471835,1.13343205,112700.0,112690.0,0.39938263]
[1755859472144,1.13343205,112700.0,112690.0,0.11857]
[1755859472442,1.13343205,112700.0,112690.0,0.39938263]
[1755859474240,0.31079205,112700.0,112690.0,0.39938263]
[1755859474439,1.13339205,112700.0,112690.0,0.39938263]
[1755859475144,0.02997942,112700.0,112690.0,0.39938263]
[1755859475346,1.12650205,112700.0,112690.0,0.39938263]
[1755859478647,1.12642205,112700.0,112690.0,0.39938263]
[1755859479944,1.12642205,112700.0,112690.0,0.11857]
[1755859480143,1.13331205,112700.0,112690.0,0.42336742]
[1755859480551,1.13331205,112700.0,112690.0,0.14255479]
[1755859480949,1.13331205,112700.0,112690.0,0.42336742]
[1755859483353,0.85249942,112700.0,112690.0,0.42336742]
[1755859483554,1.13331205,112700.0,112690.0,0.42336742]
[1755859484157,1.13331205,112700.0,112690.0,0.14255479]
[1755859484346,1.13331205,112700.0,112690.0,0.42336742]
[1755859485049,0.85249942,112700.0,112690.0,0.42336742]
[1755859485250,1.13331205,112700.0,112690.0,0.42336742]
[1755859486255,1.13331205,112700.0,112690.0,0.39938263]
[1755859486556,1.13331205,112700.0,112690.0,0.4233668]
[1755859487356,1.13331205,112700.0,112690.0,0.14255417]
[1755859487549,1.13331205,112700.0,112690.0,0.4233668]
[1755859490359,0.85249942,112700.0,112690.0,0.4233668]
[1755859490554,1.13331205,112700.0,112690.0,0.4233668]
[1755859492267,1.13331205,112700.0,112690.0,0.14255417]
[1755859492557,1.13331205,112700.0,112690.0,0.4233668]
[1755859494560,1.13331205,112700.0,112690.0,0.42336708]
[1755859495565,1.41412468,112700.0,112690.0,0.39938263]
[1755859496964,1.13331205,112700.0,112690.0,0.39938263]
[1755859497277,1.41412468,112700.0,112690.0,0.11857]
[1755859497566,2.02492468,112700.0,112690.0,0.001]
[1755859501261,2.02492468,112700.0,112690.0,0.02369]
[1755859502567,2.02492468,112700.0,112690.0,0.001]
[1755859502874,1.20240468,112700.0,112690.0,0.04504]
[1755859503062,2.02424468,112700.0,112690.0,0.0544]
[1755859504669,1.83303625,112700.0,112690.0,0.0544]
[1755859506671,0.47187706,112700.0,112690.0,0.08754]
[1755859506865,1.85530232,112700.0,112690.0,0.11692]
[1755859507066,1.29367706,112700.0,112690.0,0.11692]
[1755859507269,1.85530232,112700.0,112690.0,0.11692]
[1755859507466,2.00986232,112700.0,112690.0,0.11692]
[1755859508481,1.6402787,112700.0,112690.0,0.55896164]
[1755859508666,1.35946607,112700.0,112690.0,0.55896164]
[1755859508865,1.92109133,112700.0,112690.0,0.55896164]
[1755859509770,1.76653133,112700.0,112690.0,0.55896164]
[1755859510171,1.20490607,112700.0,112690.0,0.27814901]
[1755859510575,1.4857187,112700.0,112690.0,0.27814901]
[1755859512973,1.4857187,112700.0,112690.0,0.55896164]
[1755859513974,1.4857187,112700.0,112690.0,0.27814901]
[1755859516880,1.20490607,112700.0,112690.0,0.27814901]
[1755859517377,1.4857187,112700.0,112690.0,0.27814901]
[1755859518180,1.4857187,112700.0,112690.0,0.55896164]
[1755859519276,1.20490607,112700.0,112690.0,0.55896164]
[1755859519476,1.4857187,112700.0,112690.0,0.55896164]
[1755859521496,1.20490607,112700.0,112690.0,0.55896164]
[1755859521796,1.4857187,112700.0,112690.0,0.55896164]
[1755859521994,1.20490607,112700.0,112690.0,0.55896164]
[1755859522295,1.4857187,112700.0,112690.0,0.55896164]
[1755859522496,1.4857187,112700.0,112690.0,0.27814901]